bitfinex/quotes_SOLUSD_20220228
["timestamp","ask_amount","ask_price","bid_price","bid_amount"]
[1646033054459,10.569,87.576,87.491,6.0]
[1646033055361,4.569,87.576,87.491,6.0]
[1646033055660,48.7645424,87.577,87.491,6.0]
[1646033056159,48.7645424,87.577,87.491,8.81074938]
[1646033057159,48.7645424,87.577,87.492,5.5301933]
[1646033057358,48.7645424,87.577,87.493,6.0]
[1646033059760,48.7645424,87.577,87.492,2.78340409]
[1646033059960,4.569,87.576,87.492,2.78340409]
[1646033060260,80.20396803,87.577,87.492,2.78340409]
[1646033060460,23.2013,87.576,87.492,2.78340409]
[1646033060862,23.2013,87.576,87.493,6.0]
[1646033061059,31.43942563,87.575,87.492,2.78340409]
[1646033062461,31.43942563,87.575,87.493,6.0]
[1646033062861,6.0,87.574,87.493,6.0]
[1646033063061,31.43942563,87.575,87.493,6.0]
[1646033063863,6.0,87.574,87.493,6.0]
[1646033064061,6.0,87.574,87.492,2.78340409]
[1646033064762,31.43942563,87.575,87.492,2.78340409]
[1646033064965,31.43942563,87.575,87.493,6.0]
[1646033065164,23.2013,87.576,87.493,6.0]
[1646033065967,36.00842563,87.575,87.493,6.0]
[1646033066165,36.00842563,87.575,87.492,2.78340409]
[1646033066766,31.43942563,87.575,87.492,2.78340409]
[1646033067266,36.00842563,87.575,87.492,2.78340409]
[1646033067565,31.43942563,87.575,87.492,2.78340409]
[1646033067765,31.43942563,87.575,87.493,6.0]
[1646033068067,31.43942563,87.575,87.492,2.78340409]
[1646033068467,6.0,87.574,87.492,2.78340409]
[1646033068666,31.43942563,87.575,87.493,6.0]
[1646033069666,6.0,87.574,87.492,2.78340409]
[1646033070066,17.1479,87.57,87.492,2.78340409]
[1646033071067,8.74678921,87.569,87.492,2.78340409]
[1646033071871,2.74678921,87.568,87.492,2.78340409]
[1646033072067,6.0,87.567,87.492,2.78340409]
[1646033072468,17.1479,87.57,87.492,2.78340409]
[1646033072667,6.0,87.569,87.492,2.78340409]
[1646033073170,115.3,87.559,87.492,2.78340409]
[1646033073369,115.3,87.557,87.492,2.78340409]
[1646033073568,4.57,87.556,87.492,2.78340409]
[1646033073868,115.3,87.554,87.492,2.78340409]
[1646033074069,115.3,87.549,87.467,2.35892144]
[1646033074270,115.3,87.547,87.467,3.0948041]
[1646033074474,115.3,87.539,87.467,3.0948041]
[1646033074672,115.3,87.537,87.445,2.25866499]
[1646033074873,115.3,87.535,87.445,2.25866499]
[1646033075071,115.3,87.533,87.422,2.4748731]
[1646033075273,115.3,87.531,87.423,10.572]
[1646033075470,115.3,87.527,87.424,15.36951086]
[1646033075671,125.872,87.526,87.425,10.572]
[1646033075872,150.5329,87.526,87.425,13.48730212]
[1646033076073,156.4629,87.526,87.425,13.48730212]
[1646033076472,17.1585,87.52,87.425,13.48730212]
[1646033076672,29.9421,87.519,87.425,13.48730212]
[1646033076873,29.9421,87.519,87.441,112.6]
[1646033077077,29.9421,87.519,87.442,5.97078691]
[1646033079479,34.5141,87.519,87.442,5.97078691]
[1646033081084,17.1598,87.51,87.442,5.97078691]
[1646033081287,44.04778032,87.508,87.442,5.97078691]
[1646033081488,6.0,87.507,87.442,5.97078691]
[1646033082187,6.0,87.507,87.442,2.88437504]
[1646033082385,17.1619,87.5,87.442,2.88437504]
[1646033083211,6.0,87.499,87.442,2.88437504]
[1646033084010,6.0,87.499,87.425,4.572]
[1646033084310,24.3777,87.498,87.425,4.572]
[1646033084510,6.0,87.497,87.425,4.572]
[1646033085512,115.3,87.496,87.425,4.572]
[1646033085714,17.164,87.49,87.412,2.27448704]
[1646033085914,115.3,87.488,87.412,2.27448704]
[1646033086114,6.0,87.489,87.412,2.27448704]
[1646033086115,115.3,87.486,87.412,2.27448704]
[1646033086314,115.3,87.484,87.412,2.27448704]
[1646033086512,115.3,87.479,87.412,2.27448704]
[1646033086712,17.1693,87.47,87.412,2.27448704]
[1646033087114,16.53,87.48,87.412,2.27448704]
[1646033087315,6.0,87.479,87.412,2.27448704]
[1646033087713,16.53,87.48,87.413,16.06352214]
[1646033087916,16.53,87.48,87.414,3.04743775]
[1646033088916,24.5223,87.485,87.414,3.04743775]
[1646033089115,24.5223,87.485,87.414,5.79422696]
[1646033089715,50.21332633,87.484,87.414,5.79422696]
[1646033090118,50.21332633,87.484,87.415,6.0]
[1646033090317,50.21332633,87.484,87.414,5.79422696]
[1646033090515,50.21332633,87.484,87.42,17.1615]
[1646033090718,50.21332633,87.484,87.421,2.89625854]
[1646033090917,50.21332633,87.484,87.421,5.64304775]
[1646033091315,50.21332633,87.484,87.422,2.74678921]
[1646033092820,50.21332633,87.484,87.422,2.40861758]
[1646033093116,78.72505873,87.484,87.422,2.40861758]
[1646033093517,78.72505873,87.484,87.414,2.50263396]
[1646033093719,6.0,87.483,87.414,2.50263396]
[1646033093918,50.21332633,87.484,87.414,2.50263396]
[1646033094719,6.0,87.483,87.414,2.50263396]
[1646033095123,17.1661,87.48,87.414,2.50263396]
[1646033095322,6.0,87.479,87.414,2.50263396]
[1646033096222,6.0,87.479,87.415,14.79861597]
[1646033096424,6.0,87.479,87.416,3.01879164]
[1646033098424,50.21332633,87.484,87.416,3.01879164]
[1646033099727,50.21332633,87.484,87.417,2.74678921]
[1646033100029,6.0,87.483,87.418,6.0]
[1646033100330,6.0,87.483,87.42,2.60251464]
[1646033102637,6.0,87.483,87.42,19.76411464]
[1646033102834,50.21332633,87.484,87.421,5.5712592]
[1646033103237,50.21332633,87.484,87.422,2.74678921]
[1646033103832,50.21332633,87.484,87.423,6.0]
[1646033104232,50.21332633,87.484,87.424,2.74678921]
[1646033104433,50.21332633,87.484,87.425,6.0]
[1646033104831,50.21332633,87.484,87.426,2.74678921]
[1646033106435,50.21332633,87.484,87.421,2.82446999]
[1646033107336,6.0,87.483,87.421,2.82446999]
[1646033108337,6.0,87.483,87.43,17.1596]
[1646033108537,24.4832,87.509,87.431,8.87344364]
[1646033108737,6.0,87.508,87.431,11.62023285]
[1646033108939,24.4832,87.509,87.44,112.6]
[1646033109138,24.4832,87.509,87.441,32.31323499]
[1646033109342,24.4832,87.509,87.442,3.0042379]
[1646033109343,51.82265312,87.508,87.442,3.0042379]
[1646033109538,51.82265312,87.508,87.443,6.0]
[1646033109737,6.0,87.507,87.443,6.0]
[1646033109940,6.0,87.507,87.442,3.0042379]
[1646033111039,24.4832,87.509,87.45,17.1557]
[1646033111241,16.53,87.54,87.451,25.50735521]
[1646033111441,28.2326,87.548,87.452,2.64384012]
[1646033111640,16.53,87.54,87.452,2.64384012]
[1646033112139,45.19643943,87.525,87.452,2.64384012]
[1646033112340,45.19643943,87.525,87.453,6.0]
[1646033112740,33.6852,87.54,87.453,6.0]
[1646033112940,4.572,87.539,87.453,6.0]
[1646033113145,28.5316,87.538,87.46,17.1538]
[1646033113344,28.5316,87.538,87.461,2.76880505]
[1646033113943,42.83058801,87.537,87.463,2.90470234]
[1646033114141,6.0,87.536,87.464,6.0]
[1646033114341,6.0,87.536,87.463,2.90470234]
[1646033115042,115.3,87.529,87.463,2.90470234]
[1646033115241,115.3,87.527,87.463,2.90470234]
[1646033115442,6.0,87.526,87.463,2.90470234]
[1646033115647,32.25839906,87.526,87.463,2.90470234]
[1646033115846,119.871,87.525,87.463,2.90470234]
[1646033116043,115.3,87.523,87.443,27.13983351]
[1646033116244,115.3,87.519,87.444,3.08838611]
[1646033116444,17.1613,87.51,87.444,3.08838611]
[1646033116645,81.39234595,87.509,87.444,3.08838611]
[1646033116844,115.3,87.508,87.444,3.08838611]
[1646033117044,81.39234595,87.509,87.444,3.08838611]
[1646033117045,125.872,87.507,87.444,3.08838611]
[1646033117245,119.872,87.507,87.444,3.08838611]
[1646033117445,6.0,87.506,87.444,3.08838611]
[1646033117847,115.3,87.499,87.44,112.6]
[1646033118047,115.3,87.497,87.44,112.6]
[1646033118255,115.3,87.493,87.44,112.6]
[1646033118446,115.3,87.491,87.421,2.4266908]
[1646033118647,115.3,87.489,87.421,2.4266908]
[1646033118848,115.3,87.479,87.399,2.9934456]
[1646033119047,115.3,87.469,87.399,2.9934456]
[1646033119246,115.3,87.467,87.399,2.9934456]
[1646033119448,115.3,87.465,87.399,2.9934456]
[1646033119748,56.03530751,87.464,87.4,18.31848641]
[1646033119947,6.0,87.463,87.401,26.95171799]
[1646033120150,6.0,87.463,87.402,3.0887888]
[1646033121748,10.574,87.463,87.402,3.0887888]
[1646033122448,6.0,87.463,87.402,3.0887888]
[1646033123350,115.3,87.462,87.402,3.0887888]
[1646033123547,10.574,87.461,87.395,16.7906]
[1646033123748,6.0,87.463,87.396,2.95383081]
[1646033123949,6.0,87.463,87.396,5.70062002]
[1646033124150,6.0,87.463,87.397,13.05040262]
[1646033124354,6.0,87.463,87.397,15.83647262]
[1646033125653,6.0,87.463,87.397,18.58326183]
[1646033125952,6.0,87.463,87.398,3.07753665]
[1646033128352,115.3,87.462,87.398,3.07753665]
[1646033128554,115.3,87.46,87.398,3.07753665]
[1646033128851,115.3,87.458,87.398,3.07753665]
[1646033129052,121.3,87.457,87.398,3.07753665]
[1646033129252,6.0,87.459,87.398,3.07753665]
[1646033129654,6.0,87.462,87.398,3.07753665]
[1646033129952,4.575,87.461,87.398,3.07753665]
[1646033130153,6.0,87.46,87.398,3.07753665]
[1646033130353,6.0,87.462,87.398,3.07753665]
[1646033130758,6.0,87.462,87.399,2.74678921]
[1646033131457,6.0,87.462,87.398,3.07753665]
[1646033131658,50.83652359,87.461,87.399,6.0]
[1646033131876,6.0,87.46,87.398,3.07753665]
[1646033132280,115.3,87.459,87.398,3.07753665]
[1646033132477,122.4,87.459,87.398,3.07753665]
[1646033132677,4.575,87.458,87.398,3.07753665]
[1646033132877,4.575,87.458,87.33,115.3]
[1646033132878,115.3,87.449,87.371,2.77945575]
[1646033133078,115.3,87.447,87.364,2.73105975]
[1646033133278,4.575,87.446,87.364,2.73105975]
[1646033133679,115.3,87.442,87.364,2.73105975]
[1646033133883,131.83,87.44,87.364,2.73105975]
[1646033134080,115.3,87.438,87.364,2.73105975]
[1646033134280,125.875,87.437,87.364,2.73105975]
[1646033136483,10.575,87.437,87.364,2.73105975]
[1646033137082,6.0,87.437,87.364,2.73105975]
[1646033137282,6.0,87.439,87.364,2.73105975]
[1646033138182,115.3,87.438,87.364,2.73105975]
[1646033138383,121.3,87.437,87.364,2.73105975]
[1646033138582,4.575,87.436,87.364,2.73105975]
[1646033138782,6.0,87.435,87.364,2.73105975]
[1646033138985,6.0,87.437,87.364,2.73105975]
[1646033139382,6.0,87.439,87.364,2.73105975]
[1646033141989,24.7675,87.447,87.365,6.0]
[1646033142190,16.53,87.47,87.365,6.0]
[1646033142485,4.80693992,87.591,87.365,6.0]
[1646033142486,10.575,87.469,87.366,2.74678921]
[1646033142685,4.575,87.469,87.367,6.0]
[1646033142886,57.56429309,87.468,87.367,6.0]
[1646033143085,51.56429309,87.468,87.368,2.74678921]
[1646033143287,4.575,87.476,87.386,2.57185445]
[1646033143486,28.09529525,87.488,87.387,52.3263]
[1646033143685,4.574,87.498,87.388,2.4252616]
[1646033143886,6.0,87.497,87.389,6.0]
[1646033144088,4.574,87.496,87.389,6.0]
[1646033144286,54.80869627,87.495,87.39,5.40367341]
[1646033144489,4.574,87.494,87.4,17.1643]
[1646033144687,6.0,87.493,87.401,8.59570068]
[1646033144987,4.574,87.492,87.401,8.59570068]
[1646033145187,4.574,87.492,87.402,26.62138921]
[1646033145387,6.0,87.491,87.403,9.11614032]
[1646033145591,6.0,87.491,87.404,13.02233004]
[1646033145789,6.0,87.491,87.405,6.0]
[1646033145988,6.0,87.493,87.405,8.75537358]
[1646033146189,4.574,87.492,87.405,11.50216279]
[1646033146387,6.0,87.491,87.406,2.74678921]
[1646033146590,6.0,87.491,87.41,17.1634]
[1646033146789,4.574,87.494,87.411,6.0]
[1646033146988,28.09529525,87.515,87.411,18.01729823]
[1646033147189,6.0,87.508,87.412,5.09106871]
[1646033147488,6.0,87.508,87.414,2.96505328]
[1646033147688,6.0,87.508,87.416,2.3958398]
[1646033147888,6.0,87.508,87.417,6.0]
[1646033148089,57.76240139,87.507,87.418,5.40367341]
[1646033148289,6.0,87.506,87.419,6.0]
[1646033148488,6.0,87.506,87.42,17.1598]
[1646033148688,6.0,87.506,87.421,8.8133826]
[1646033149094,6.0,87.506,87.421,11.56017181]
[1646033149291,6.0,87.506,87.422,2.74678921]
[1646033149490,6.0,87.506,87.423,6.0]
[1646033149689,28.72681719,87.506,87.43,17.1597]
[1646033149890,4.573,87.505,87.431,2.66366838]
[1646033150192,34.09529525,87.504,87.432,13.02233004]
[1646033151391,34.09529525,87.504,87.432,37.83903004]
[1646033151593,34.09529525,87.504,87.433,3.02023891]
[1646033153392,6.0,87.504,87.433,3.02023891]
[1646033153594,6.0,87.506,87.433,3.02023891]
[1646033153993,34.09529525,87.506,87.433,3.02023891]
[1646033154995,6.0,87.506,87.433,3.02023891]
[1646033159896,57.76240139,87.507,87.44,17.1577]
[1646033160096,57.76240139,87.507,87.441,8.94529302]
[1646033160495,4.572,87.527,87.441,8.94529302]
[1646033160696,16.53,87.53,87.441,8.94529302]
[1646033160897,16.53,87.53,87.45,17.1557]
[1646033161097,6.0,87.527,87.452,3.00208599]
[1646033161299,115.3,87.549,87.452,3.00208599]
[1646033161500,48.51691198,87.527,87.453,11.40367341]
[1646033162103,6.0,87.526,87.453,11.40367341]
[1646033162503,27.883,87.548,87.453,11.40367341]
[1646033162699,27.883,87.548,87.46,17.1535]
[1646033162900,6.0,87.547,87.461,30.7922]
[1646033163101,6.0,87.547,87.462,2.9635458]
[1646033163402,6.0,87.547,87.463,6.0]
[1646033163599,50.67823024,87.546,87.465,2.44934559]
[1646033163799,6.0,87.545,87.467,13.02233004]
[1646033163998,6.0,87.545,87.468,8.74247142]
[1646033164601,4.571,87.544,87.468,2.74247142]
[1646033164799,6.0,87.543,87.468,2.74247142]
[1646033165098,4.571,87.542,87.468,2.74247142]
[1646033165299,6.0,87.541,87.468,2.74247142]
[1646033165498,4.571,87.54,87.468,2.74247142]
[1646033165701,6.0,87.539,87.468,2.74247142]
[1646033165899,4.571,87.538,87.468,2.74247142]
[1646033166103,6.0,87.537,87.468,2.74247142]
[1646033166704,30.35368921,87.536,87.468,2.74247142]
[1646033167002,6.0,87.535,87.468,2.74247142]
[1646033167206,16.53,87.53,87.468,2.74247142]
[1646033167504,172.09150812,87.528,87.468,2.74247142]
[1646033167702,6.0,87.527,87.468,2.74247142]
[1646033168101,4.571,87.526,87.468,2.74247142]
[1646033168304,6.0,87.525,87.468,2.74247142]
[1646033168503,4.571,87.524,87.468,2.74247142]
[1646033168701,6.0,87.523,87.468,2.74247142]
[1646033168903,115.3,87.524,87.468,2.74247142]
[1646033169102,115.3,87.519,87.468,2.74247142]
[1646033169303,121.3,87.518,87.468,2.74247142]
[1646033169703,121.3,87.518,87.435,23.0486]
[1646033169905,121.3,87.518,87.462,2.51118301]
[1646033170102,121.3,87.518,87.436,2.97630579]
[1646033170303,115.3,87.516,87.436,2.97630579]
[1646033170506,53.12283252,87.514,87.437,17.2097037]
[1646033170703,16.53,87.51,87.438,2.92232318]
[1646033170905,6.0,87.509,87.438,2.92232318]
[1646033171509,6.0,87.509,87.439,2.74678921]
[1646033171709,6.0,87.509,87.438,2.92232318]
[1646033172309,6.0,87.509,87.439,2.74678921]
[1646033172512,4.572,87.545,87.439,2.74678921]
[1646033172710,16.53,87.55,87.44,30.9289]
[1646033173009,6.0,87.549,87.441,3.07491062]
[1646033173209,45.50651858,87.548,87.442,8.94856266]
[1646033173412,6.0,87.547,87.461,4.11679949]
[1646033173610,3.77422158,87.57,87.464,55.0]
[1646033173810,90.55170225,87.61,87.465,115.3]
[1646033173811,16.53,87.6,87.465,115.3]
[1646033174011,90.55170225,87.61,87.48,16.53]
[1646033174213,17.1244,87.626,87.484,0.59]
[1646033174412,16.53,87.64,87.511,117.78761151]
[1646033174615,115.3,87.645,87.513,115.3]
[1646033174813,16.53,87.64,87.515,115.3]
[1646033175015,16.53,87.64,87.52,16.53]
[1646033175212,16.53,87.64,87.521,6.0]
[1646033175415,17.1402,87.63,87.54,17.1372]
[1646033175613,125.866,87.629,87.54,17.1372]
[1646033175815,6.0,87.629,87.541,8.83758532]
[1646033176012,6.0,87.629,87.541,2.83758532]
[1646033176311,6.0,87.638,87.542,6.0]
[1646033176515,6.0,87.638,87.543,4.566]
[1646033176712,47.89633934,87.637,87.544,6.0]
[1646033176915,6.0,87.636,87.545,4.566]
[1646033177112,6.0,87.636,87.546,6.0]
[1646033177313,6.0,87.636,87.547,4.566]
[1646033177515,6.0,87.636,87.55,17.1358]
[1646033177713,4.566,87.635,87.551,9.08173459]
[1646033177913,6.0,87.634,87.551,9.08173459]
[1646033178113,4.566,87.633,87.551,9.08173459]
[1646033178313,6.0,87.632,87.551,9.08173459]
[1646033178514,17.1402,87.63,87.531,4.566]
[1646033178713,6.0,87.629,87.532,6.0]
[1646033178915,6.0,87.629,87.532,8.74678921]
[1646033179115,6.0,87.629,87.533,2.74678921]
[1646033179316,6.0,87.636,87.534,6.0]
[1646033179717,119.866,87.635,87.54,17.1378]
[1646033179918,115.3,87.633,87.541,8.7707026]
[1646033180218,10.566,87.632,87.541,2.7707026]
[1646033180418,10.566,87.632,87.542,8.74678921]
[1646033180419,6.0,87.632,87.542,8.74678921]
[1646033180616,6.0,87.634,87.542,8.74678921]
[1646033180818,6.0,87.636,87.542,8.74678921]
[1646033181017,6.0,87.636,87.55,17.1354]
[1646033181218,6.0,87.636,87.551,6.0]
[1646033181417,6.0,87.636,87.551,8.74678921]
[1646033181822,6.0,87.636,87.551,124.04678921]
[1646033182018,10.566,87.649,87.552,22.19052057]
[1646033182219,10.566,87.649,87.553,8.8883964]
[1646033182419,10.566,87.649,87.553,28.19052057]
[1646033182619,10.566,87.649,87.554,22.4885973]
[1646033182822,44.36233559,87.648,87.555,6.0]
[1646033183123,10.566,87.647,87.561,2.9037298]
[1646033183325,10.566,87.647,87.562,6.0]
[1646033184120,10.566,87.647,87.561,2.9037298]
[1646033184319,115.3,87.639,87.561,2.9037298]
[1646033184522,10.566,87.647,87.543,2.86542775]
[1646033184523,10.566,87.638,87.543,2.86542775]
[1646033184823,4.566,87.638,87.543,2.86542775]
[1646033185020,6.0,87.637,87.543,2.86542775]
[1646033185621,6.0,87.646,87.55,17.1359]
[1646033185821,6.0,87.646,87.551,8.9360404]
[1646033186024,6.0,87.647,87.551,11.68282961]
[1646033186223,4.566,87.646,87.551,8.74678921]
[1646033186424,6.0,87.645,87.552,2.74678921]
[1646033186624,4.566,87.644,87.553,6.0]
[1646033186823,4.566,87.647,87.553,6.0]
[1646033187125,17.1362,87.64,87.553,2.74678921]
[1646033187324,17.1362,87.64,87.554,6.0]
[1646033187725,17.1362,87.64,87.555,2.74678921]
[1646033187927,17.1362,87.64,87.556,6.0]
[1646033188347,17.1362,87.64,87.557,2.74678921]
[1646033188548,17.1362,87.64,87.558,6.0]
[1646033188950,17.1362,87.64,87.558,8.74678921]
[1646033189347,115.3,87.639,87.558,8.74678921]
[1646033189549,17.1362,87.64,87.558,8.74678921]
[1646033190249,115.3,87.639,87.558,8.74678921]
[1646033190552,115.3,87.639,87.558,2.74678921]
[1646033191351,115.3,87.629,87.551,2.66913294]
[1646033191555,115.3,87.626,87.546,3.02370924]
[1646033191752,10.566,87.625,87.546,3.02370924]
[1646033191956,6.0,87.625,87.546,3.02370924]
[1646033192153,16.8777,87.626,87.546,3.02370924]
[1646033192357,6.0,87.625,87.546,3.02370924]
[1646033192554,17.14,87.62,87.546,3.02370924]
[1646033192852,121.3,87.619,87.546,3.02370924]
[1646033193055,4.567,87.618,87.524,2.82058359]
[1646033193352,115.3,87.616,87.524,2.82058359]
[1646033193552,115.3,87.612,87.524,2.82058359]
[1646033193752,115.3,87.61,87.524,2.82058359]
[1646033193954,121.3,87.609,87.524,2.82058359]
[1646033194154,6.0,87.609,87.524,2.82058359]
[1646033194355,53.00201701,87.613,87.524,2.82058359]
[1646033194654,17.1421,87.61,87.524,2.82058359]
[1646033194854,4.567,87.609,87.524,2.82058359]
[1646033195054,119.867,87.609,87.524,2.82058359]
[1646033195254,4.567,87.609,87.524,2.82058359]
[1646033195859,17.144,87.6,87.524,2.82058359]
[1646033196057,48.68255685,87.598,87.524,2.82058359]
[1646033196256,163.98255685,87.598,87.513,2.82544176]
[1646033196459,6.0,87.597,87.513,2.82544176]
[1646033196858,4.567,87.596,87.513,2.82544176]
[1646033197061,6.0,87.595,87.513,2.82544176]
[1646033197258,10.567,87.597,87.513,2.82544176]
[1646033197459,17.146,87.59,87.513,2.82544176]
[1646033197661,115.3,87.589,87.513,2.82544176]
[1646033197959,6.0,87.588,87.513,2.82544176]
[1646033198961,4.567,87.597,87.513,2.82544176]
[1646033199162,48.68255685,87.598,87.513,5.57223097]
[1646033199365,48.68255685,87.598,87.514,16.06373136]
[1646033199562,48.68255685,87.598,87.515,2.59355678]
[1646033199763,48.68255685,87.598,87.515,5.34034599]
[1646033199960,48.68255685,87.598,87.517,3.02678775]
[1646033200362,48.68255685,87.598,87.518,18.81052057]
[1646033200562,48.68255685,87.598,87.52,17.1417]
[1646033200765,48.68255685,87.598,87.521,2.51080642]
[1646033200962,48.68255685,87.598,87.521,18.57453778]
[1646033201163,48.68255685,87.598,87.521,18.81052057]
[1646033201361,48.68255685,87.598,87.522,24.81052057]
[1646033201562,48.68255685,87.598,87.523,2.74389018]
[1646033201860,48.68255685,87.598,87.523,5.49067939]
[1646033202063,48.68255685,87.598,87.524,8.74678921]
[1646033202264,48.68255685,87.598,87.524,2.74678921]
[1646033202463,23.0382,87.607,87.53,17.1399]
[1646033202663,4.567,87.628,87.531,8.56829824]
[1646033202863,6.0,87.627,87.531,32.26868921]
[1646033203062,6.0,87.627,87.532,2.98729522]
[1646033203265,6.0,87.627,87.533,6.0]
[1646033203464,17.1399,87.62,87.533,11.31175091]
[1646033203664,17.1399,87.62,87.534,2.74678921]
[1646033203864,17.1399,87.62,87.535,6.0]
[1646033204265,17.1399,87.62,87.536,2.74678921]
[1646033204466,17.1399,87.62,87.537,6.0]
[1646033204867,17.1399,87.62,87.538,2.74678921]
[1646033205068,6.0,87.619,87.539,6.0]
[1646033205470,6.0,87.619,87.54,2.74678921]
[1646033205672,6.0,87.619,87.541,6.0]
[1646033206075,6.0,87.619,87.542,2.74678921]
[1646033206372,17.1399,87.62,87.543,6.0]
[1646033206804,17.1399,87.62,87.544,2.74678921]
[1646033206975,17.1399,87.62,87.545,6.0]
[1646033207177,115.3,87.619,87.534,2.74678921]
[1646033207376,17.1419,87.61,87.534,2.74678921]
[1646033207576,52.4556117,87.609,87.534,2.74678921]
[1646033208278,4.567,87.608,87.533,2.5649617]
[1646033208478,6.0,87.607,87.533,2.5649617]
[1646033208675,4.567,87.606,87.533,2.5649617]
[1646033208876,6.0,87.605,87.533,2.5649617]
[1646033209075,4.567,87.604,87.533,2.5649617]
[1646033209277,6.0,87.603,87.533,2.5649617]
[1646033209476,167.7556117,87.609,87.533,2.5649617]
[1646033210276,17.1437,87.6,87.533,2.5649617]
[1646033210478,115.3,87.599,87.521,2.74678921]
[1646033210678,115.3,87.589,87.513,112.6]
[1646033210878,115.3,87.587,87.514,2.29077242]
[1646033211079,115.3,87.585,87.479,2.55121304]
[1646033211377,17.156,87.55,87.479,2.55121304]
[1646033211577,52.17622589,87.548,87.479,2.55121304]
[1646033211777,6.0,87.547,87.48,2.74678921]
[1646033213979,6.0,87.547,87.479,2.55121304]
[1646033214680,17.1554,87.54,87.479,2.55121304]
[1646033214880,6.0,87.547,87.479,2.55121304]
[1646033216183,6.0,87.547,87.48,2.74678921]
[1646033216382,6.0,87.547,87.479,2.55121304]
[1646033216383,115.3,87.546,87.479,2.55121304]
[1646033216583,6.0,87.545,87.479,2.55121304]
[1646033216783,6.0,87.547,87.479,2.55121304]
[1646033217783,115.3,87.546,87.479,2.55121304]
[1646033217985,6.0,87.545,87.479,2.55121304]
[1646033218985,6.0,87.546,87.479,2.55121304]
[1646033219187,6.0,87.547,87.479,2.55121304]
[1646033219987,115.3,87.546,87.479,2.55121304]
[1646033220189,115.3,87.539,87.479,2.55121304]
[1646033220486,4.57,87.546,87.479,2.55121304]
[1646033220686,52.17622589,87.548,87.479,2.55121304]
[1646033220687,4.57,87.547,87.48,2.74678921]
[1646033220888,6.0,87.546,87.479,2.55121304]
[1646033221087,119.87,87.545,87.479,2.55121304]
[1646033221290,6.0,87.544,87.479,2.55121304]
[1646033221486,33.6867,87.54,87.479,2.55121304]
[1646033221905,6.0,87.539,87.479,2.55121304]
[1646033222106,121.3,87.539,87.479,2.55121304]
[1646033223105,4.57,87.538,87.479,2.55121304]
[1646033223306,6.0,87.537,87.479,2.55121304]
[1646033223505,17.1585,87.53,87.479,2.55121304]
[1646033223708,49.27650938,87.528,87.479,2.55121304]
[1646033223908,6.0,87.527,87.479,2.55121304]
[1646033224507,6.0,87.527,87.464,2.41245391]
[1646033225008,49.27650938,87.528,87.464,2.41245391]
[1646033226011,6.0,87.527,87.464,2.41245391]
[1646033226412,6.0,87.526,87.464,2.41245391]
[1646033226609,6.0,87.527,87.464,2.41245391]
[1646033228114,115.3,87.526,87.464,2.41245391]
[1646033228311,115.3,87.519,87.446,5.70617317]
[1646033228616,115.3,87.519,87.445,112.6]
[1646033228617,47.53129603,87.508,87.445,112.6]
[1646033228810,119.872,87.507,87.445,112.6]
[1646033229012,128.61878921,87.507,87.385,112.6]
[1646033229212,115.3,87.505,87.386,30.5931]
[1646033229512,17.1663,87.49,87.39,17.1672]
[1646033229712,43.30267334,87.488,87.391,8.7222479]
[1646033230015,6.0,87.487,87.391,8.7222479]
[1646033231414,115.3,87.486,87.391,8.7222479]
[1646033231618,115.3,87.484,87.391,8.7222479]
[1646033231822,115.3,87.482,87.391,8.7222479]
[1646033232018,115.3,87.48,87.391,8.7222479]
[1646033232216,121.3,87.479,87.391,8.7222479]